Cogmind - Beta 13 @@@ ROGUE MODE // 2024.07.14 @ 22:01:44 Player: maykstuff Result: Destroyed by H-61 Shepherd with Heavy Assault Cannon Performance ------------- Evolutions (2) 1000 Regions Visited (3) 600 Robots Destroyed (84) 420 Value Destroyed (2436) 2436 Prototype IDs (8) 160 Alien Tech Used (0) 0 Bonus (11) 11 TOTAL SCORE: 4627 Bonus ------- High Alert Combat Kills 11 Cogmind --------- Core Integrity 0/550 Matter 290/300 Energy 263/275 System Corruption 2% Temperature Cool (39) Movement Walking (120) Location -8/Materials Parts ------- > --- POWER (1) -------- Deuterium Engine > --- PROPULSION (4) --- Aluminum Leg Aluminum Leg Improved Aluminum Leg > --- UTILITY (3) ------ Improved Heat Sink Signal Interpreter Improved Targeting Computer > --- WEAPON (3) ------- Particle Gun Advanced Beam Rifle Heavy Flail > --- INVENTORY (5) ---- Armored Treads Improved Terrain Scanner Targeting Computer Ion Cannon Datajack Peak State ------------ > --- POWER ------------ Deuterium Engine > --- PROPULSION ------- Aluminum Leg Aluminum Leg Aluminum Leg Improved Aluminum Leg > --- UTILITY ---------- Improved Heat Sink Signal Interpreter Improved Targeting Computer > --- WEAPON ----------- Particle Gun Advanced Beam Rifle Heavy Flail > --- INVENTORY -------- Armored Treads Improved Terrain Scanner Targeting Computer Ion Cannon Datajack [Rating: 24] Favorites ----------- Power Improved Ion Engine Engine Improved Ion Engine Power Core Light Nuclear Core Propulsion Aluminum Leg Treads Light Treads Leg Aluminum Leg Wheel Wheel Hover Unit Improved Hover Unit Utility Improved Targeting Computer Device Improved Heat Sink Storage Small Storage Unit Processor Improved Targeting Computer Weapon Pulse Rifle Energy Gun Pulse Rifle Ballistic Gun Improved Assault Rifle Ballistic Cannon Light Cannon Launcher Rocket Launcher Impact Weapon Heavy Flail Build | -11 -10 -9 -8 ------- Run | Yrd Mat Mat Mat Slots Evolved 4 | . . 2 2 Power . | . . . . Propulsion 2 | . . . 2 Utility 1 | . . 1 . Weapon 1 | . . 1 . Parts Attached 79 | 7 15 37 20 Power 14 | 1 2 8 3 Engine 13 | 1 2 8 2 Core 1 | . . . 1 Reactor . | . . . . Propulsion 32 | 2 8 12 10 Treads 5 | . . 2 3 Leg 10 | . . 4 6 Wheel 13 | 2 4 6 1 Hover 4 | . 4 . . Flight . | . . . . Utility 12 | 2 2 6 2 Device 5 | 1 . 2 2 Storage 3 | 1 . 2 . Processor 4 | . 2 2 . Hackware . | . . . . Protection . | . . . . Artifact . | . . . . Weapon 21 | 2 3 11 5 Energy Gun 10 | . . 7 3 Energy Cannon . | . . . . Ballistic Gun 8 | 2 2 4 . Ballistic Cannon 1 | . 1 . . Launcher 1 | . . . 1 Special Weapon . | . . . . Impact Weapon 1 | . . . 1 Slashing Weapon . | . . . . Piercing Weapon . | . . . . Special Melee Weapon . | . . . . Unidentified Prototypes 5 | . . 4 1 Parts Lost 24 | . 5 8 11 Power 4 | . . 2 2 Propulsion 11 | . 4 2 5 Utility 2 | . . 1 1 Weapon 7 | . 1 3 3 Highest Loss Streak 4 | . 2 3 4 To Critical Strikes . | . . . . Average Slot Usage (%) 91 | . 95 95 76 Engine 9 | . 14 10 3 Leg 8 | . . 9 12 Wheel 10 | . 10 10 6 Hover 2 | . 13 . . Device 2 | . . 1 4 Storage 5 | . 5 6 3 Processor 22 | . 22 23 18 Energy Gun 15 | . . 21 14 Ballistic Gun 10 | . 22 9 . Ballistic Cannon 1 | . 5 . . Impact Weapon 1 | . . . 5 Naked Turns . | . . . . Heaviest Build 36 | 14 14 36 23 Greatest Support 43 | 26 32 32 43 Greatest Overweight (x) 3 | . 2 3 3 Average Overweight (x) . | . . . . Largest Inventory Capacity 15 | 8 8 15 8 Average Capacity 6 | 6 6 6 6 Most Carried 8 | 6 8 8 8 Average Carried 5 | 2 5 6 5 Final Capacity 8 | 8 5 8 5 Final Carried 8 | 6 4 8 5 Class Distribution -------------------- 40% | Mutant 27% | Scavenger-Gunner 23% | Gunner 8% | Scavenger-Mutant Dominant Class ---------------- Mutant | -10/Materials Scavenger-Gunner | -9/Materials Scavenger-Mutant | -8/Materials Resources | -11 -10 -9 -8 ----------- Run | Yrd Mat Mat Mat Matter Collected 1534 | 304 392 617 221 Remotely . | . . . . Salvage Created 3110 | 121 695 1539 755 Parts 197 | 5 37 97 58 Haulers Intercepted 7 | . 2 5 . Recyclers Shooed 1 | . . 1 . Parts Field Recycled . | . . . . Retrieved Matter . | . . . . Parts Self-Destructed . | . . . . Prevented . | . . . . Kills | -11 -10 -9 -8 ------- Run | Yrd Mat Mat Mat Combat Hostiles Destroyed 65 | . 14 28 23 Melee 3 | . . . 3 Guns 51 | . 7 27 17 Cannons 7 | . 7 . . AOE 2 | . . . 2 Classes Destroyed 12 | 2 3 4 3 Worker 4 | . 1 3 . Builder 1 | . . . 1 Tunneler 1 | 1 . . . Hauler 7 | . 2 5 . Recycler 3 | 1 1 1 . Mechanic 1 | . . 1 . Watcher 2 | . . 2 . Swarmer 12 | . . 4 8 Grunt 39 | . 14 15 10 Sentry 12 | . . 9 3 Hunter 1 | . . . 1 Heavy 1 | . . . 1 Best Kill Streak 9 | 1 6 5 9 Combat Bots Only 9 | . 5 4 9 Max Kills in Single Turn 2 | 1 1 2 2 Gunslinging 1 | . . . 1 Exploded 1 | . . . 1 Melee 1 | . . . 1 Uniques/NPCs Destroyed . | . . . . Combat | -11 -10 -9 -8 -------- Run | Yrd Mat Mat Mat Hostile Shots Fired 388 | . 80 165 143 Missed 126 | . 29 49 48 Damage Taken 3947 | . 645 1542 1760 Core 1133 | . 167 376 590 Absorbed by Shields . | . . . . Core Remaining (%) 46 | 100 33 6 . Volleys Fired 227 | 11 58 111 47 Largest 3 | 2 2 3 3 Hottest 170 | 40 55 170 159 Shots Fired 516 | 22 113 282 99 Gun 469 | 22 72 282 93 Cannon 41 | . 41 . . Launcher 6 | . . . 6 Special . | . . . . Kinetic 237 | 22 113 102 . Thermal 263 | . . 170 93 Explosive 6 | . . . 6 Electromagnetic 10 | . . 10 . Robot Hit Streak 23 | 4 15 21 23 Robot Miss Streak 6 | 4 5 6 3 Penetration Max . | . . . . Secondary Targets 4 | . . 2 2 Max Gunslinging Chain 1 | . . 1 1 Shots Hit Robots 340 | 11 72 179 78 Core Hits 143 | 3 32 66 42 Critical Kills . | . . . . Critical Parts Destroyed . | . . . . Critical Strikes 1 | . 1 . . Blast 1 | . 1 . . Melee Attacks 20 | . . . 20 Impact 20 | . . . 20 Slashing . | . . . . Piercing . | . . . . Sneak Attacks . | . . . . Combat Hostiles . | . . . . Follow-up Attacks . | . . . . Damage Inflicted 5600 | 155 916 2656 1873 Guns 4162 | 155 419 2608 980 Cannons 489 | . 489 . . Explosions 446 | . . 48 398 Melee 495 | . . . 495 Ramming 8 | . 8 . . Kinetic 1885 | 155 908 822 . Thermal 2674 | . . 1694 980 Explosive 398 | . . . 398 Electromagnetic 140 | . . 140 . Impact 495 | . . . 495 Slashing . | . . . . Piercing . | . . . . Highest Corruption 2 | . . . 2 Average Corruption 2 | . . . 2 Corruption Purged . | . . . . Corruption Blocked . | . . . . Effects 2 | . . . 2 Message Errors 2 | . . . 2 Overload Shots . | . . . . Overflow Damage 39 | . . . 39 Projectiles . | . . . . Explosions 23 | . . . 23 Melee 16 | . . . 16 Knockbacks 12 | . 11 . 1 Impact 2 | . 1 . 1 Kinetic 9 | . 9 . . Secondary 1 | . 1 . . Self-Inflicted Damage 61 | . 3 40 18 Shots 2 | . . 1 1 Rammed 2 | . 2 . . Targets Rammed 2 | . 2 . . Kicked . | . . . . Crushed . | . . . . Highest Temperature 412 | . 121 412 282 Average Temperature 101 | . 36 130 83 Received Heat Transfer 1431 | . 363 690 378 Effects 14 | . . 9 5 Shutdowns 4 | . . 4 . Energy Bleed 2 | . . 2 . Interference 6 | . . 1 5 Short Circuit 1 | . . 1 . Damage (minor) 1 | . . 1 . Siege Activations . | . . . . Robots Corrupted . | . . . . Combat Hostiles . | . . . . Parts Fried . | . . . . Impact Corruptions 2 | . . . 2 Robots Melted 1 | . . 1 . Combat Hostiles 1 | . . 1 . Parts Melted 12 | . . 6 6 Heat Transferred 5860 | . . 3736 2124 Parts Sabotaged . | . . . . Parts Stolen . | . . . . Parts Stripped . | . . . . Power Chain Reactions 1 | . . 1 . Alert | -11 -10 -9 -8 ------- Run | Yrd Mat Mat Mat Peak Influence 418 | 10 361 222 418 Initial 93 | . 6 69 93 Average 128 | 3 146 114 174 Maximum Alert Level 2 | . 1 1 2 Low Security (%) 85 | 100 70 91 78 Level 1 14 | . 29 8 19 Level 2 . | . . . 1 Level 3 . | . . . . Level 4 . | . . . . Level 5 . | . . . . High Security . | . . . . Max Security . | . . . . Squads Dispatched 15 | . 4 5 6 Investigation 9 | . 2 4 3 Extermination . | . . . . Reinforcement 6 | . 2 1 3 Assault . | . . . . Garrison . | . . . . Intercept . | . . . . Searches Triggered . | . . . . Construction Impeded 1 | . . . 1 Haulers Reinforced . | . . . . Active Scanning Responses . | . . . . Cargo Convoy Interrupts . | . . . . Stealth | -11 -10 -9 -8 --------- Run | Yrd Mat Mat Mat Distress Signals 9 | . 3 2 4 Communications Jammed . | . . . . Distress Signals . | . . . . Times Spotted 102 | . 25 44 33 Peak Tracking Total 10 | . 6 4 10 Tactical Retreats 5 | . 1 . 4 Traps | -11 -10 -9 -8 ------- Run | Yrd Mat Mat Mat Traps Triggered 6 | . 2 3 1 Indirectly . | . . . . Trap Hack Attempts . | . . . . Triggered . | . . . . Disarmed 3 | . . 3 . Reprogrammed . | . . . . Reused . | . . . . Traps Extracted . | . . . . Installed . | . . . . Triggered 1 | . . . 1 Machines | -11 -10 -9 -8 ---------- Run | Yrd Mat Mat Mat Machines Disabled 2 | . . . 2 Max in Single Turn 2 | . . . 2 Machines Repaired . | . . . . Machines Dismantled . | . . . . Machines Sabotaged . | . . . . Overloaded Fab Kills . | . . . . Hacking | -11 -10 -9 -8 --------- Run | Yrd Mat Mat Mat Machines Accessed 17 | . 5 9 3 Terminals 15 | . 4 8 3 Fabricators . | . . . . Repair Stations . | . . . . Recycling Units 2 | . 1 1 . Scanalyzers . | . . . . Garrison Access . | . . . . Total Hacks 52 | . 12 30 10 Successful 23 | . 6 14 3 Failed 29 | . 6 16 7 Catastrophic 5 | . 4 1 . Database Lockouts . | . . . . Manual 1 | . . 1 . Terminals 45 | . 10 25 10 Fabricators . | . . . . Repair Stations . | . . . . Recycling Units 7 | . 2 5 . Scanalyzers . | . . . . Garrison Access . | . . . . Terminal Hacks 17 | . 4 10 3 Prototype ID Bank 2 | . . 2 . Branch Access Points 1 | . . . 1 Alert Level 4 | . 1 3 . Unreport Threat 4 | . 1 2 1 Locate Traps 3 | . 1 1 1 Disarm Traps 1 | . . 1 . Reinforcement Status 1 | . 1 . . Registered Components 1 | . . 1 . Fabricator Hacks . | . . . . Repair Station Hacks . | . . . . Recycling Unit Hacks 6 | . 2 4 . Process 2 | . 1 1 . Report Inventory 2 | . 1 1 . Retrieve Matter 1 | . . 1 . Retrieve Components 1 | . . 1 . Scanalyzer . | . . . . Garrison Access Hacks . | . . . . Unauthorized Hacks . | . . . . Terminals . | . . . . Fabricators . | . . . . Repair Stations . | . . . . Recycling Units . | . . . . Scanalyzers . | . . . . Garrison Access . | . . . . Data Cores Recovered . | . . . . Used . | . . . . Hacking Detections 15 | . 5 7 3 Full Trace Events 8 | . 1 5 2 Feedback Events . | . . . . Feedback Blocked . | . . . . Robot Schematics Acquired . | . . . . Robots Built . | . . . . Authchips . | . . . . Time . | . . . . Total Robot Build Rating . | . . . . Part Schematics Acquired . | . . . . Parts Built . | . . . . Authchips . | . . . . Time . | . . . . Total Part Build Rating . | . . . . Parts Repaired . | . . . . Time . | . . . . Parts Recycled . | . . . . Recycled Matter 431 | . 159 272 . Retrieved Matter 476 | . . 476 . Retrieved Components . | . . . . Parts Scanalyzed . | . . . . Part Schematics Acquired . | . . . . Parts Damaged . | . . . . Bothacking | -11 -10 -9 -8 ------------ Run | Yrd Mat Mat Mat Used RIF Installer . | . . . . Robots Hacked . | . . . . Non-combat . | . . . . Combat . | . . . . Robot Hacks Applied . | . . . . Relay Couplers Released . | . . . . Fabnet Peak Effective % . | . . . . Robots Rewired . | . . . . Allies Hacked . | . . . . Hacks Repelled . | . . . . Allies | -11 -10 -9 -8 -------- Run | Yrd Mat Mat Mat Total Allies . | . . . . Largest Group . | . . . . Highest-Rated Group . | . . . . Highest-Rated Ally . | . . . . Total Orders . | . . . . Ally Attacks . | . . . . Total Damage . | . . . . Kills . | . . . . Allies Corrupted . | . . . . Allies Melted . | . . . . Intel | -11 -10 -9 -8 ------- Run | Yrd Mat Mat Mat Robot Analysis Total . | . . . . Derelict Logs Recovered . | . . . . Drone Launches . | . . . . Drone Recoveries . | . . . . Exploration | -11 -10 -9 -8 ------------- Run | Yrd Mat Mat Mat Turns Passed 3373 | 136 665 1879 693 Spaces Moved 2342 | 101 561 1276 404 Core 75 | 6 7 7 55 Treads 25 | . . 1 24 Legs 581 | . . 457 124 Wheels 1369 | 95 262 811 201 Hover 292 | . 292 . . Flight . | . . . . Fastest Speed 50 | 50 56 85 50 Average Speed 103 | 87 78 112 110 Slowest Speed 200 | 90 150 200 200 Overloaded Moves . | . . . . Propulsion Burnouts . | . . . . Robots Hopped . | . . . . Cave-ins Triggered . | . . . . Exploration Rate (%) 48 | 5 69 90 30 Regions Visited 3 Branch Regions . Pre-discovered Areas . | . . . . Known Exits Taken 1 | . . 1 . Unknown Exits Taken 2 | 1 1 . . Scrap Searched . | . . . . Spaces Dug . | . . . . Terrain Destroyed 27 | . . 7 20 Melee . | . . . . Projectile . | . . . . AOE 27 | . . 7 20 Terrain Rammed . | . . . . Walls Destroyed . | . . . . Machines Disabled . | . . . . Actions | -11 -10 -9 -8 --------- Run | Yrd Mat Mat Mat Total 2815 | 125 687 1480 523 Wait 77 | . 33 22 22 Move 2339 | 100 560 1275 404 Hop . | . . . . Pick Up 32 | 7 6 15 4 Fast Attach 41 | 6 5 18 12 Attach 10 | 1 5 2 2 Detach 3 | . 3 . . Swap 28 | . 5 17 6 Drop 36 | . 10 20 6 Fire 227 | 11 58 111 47 Melee 20 | . . . 20 Ram 2 | . 2 . . Kick . | . . . . Crush . | . . . . Escape Stasis . | . . . . Rewire . | . . . . Trap . | . . . . Miscellaneous . | . . . . Route ------- -11/Scrapyard -10/Materials (discovered 3 exits: *Mat / *Min x2) -9/Materials (discovered 4 exits: *Mat x3 / *Min) -8/Materials History --------- Turn | Location | Event 15 | -11/Scrapyard | Discovered new exit (range 15) 137 | -11/Scrapyard | Entered Materials 255 | -10/Materials | Discovered new exit (range 14) 305 | -10/Materials | Build established: Mutant 386 | -10/Materials | Discovered new exit (range 16) 401 | -10/Materials | Identified exit to Mines 450 | -10/Materials | Discovered new exit (range 14) 526 | -10/Materials | Core integrity fell below 50% 802 | -10/Materials | Entered another Materials area 802 | -9/Materials | Evolved 2 slots: Utility x1, Weapon x1 910 | -9/Materials | Lost 3 parts (1p1n1w) 1154 | -9/Materials | Discovered new exit (range 15) 1207 | -9/Materials | Core integrity fell below 50% 1280 | -9/Materials | Build established: Scavenger-Gunner 1495 | -9/Materials | Discovered new exit (range 12) 1698 | -9/Materials | Discovered new exit (range 16) 1823 | -9/Materials | Identified exit to Mines 2175 | -9/Materials | Identified exit to Materials 2206 | -9/Materials | Build established: Gunner 2213 | -9/Materials | Core integrity fell below 20% 2680 | -9/Materials | Discovered exit to Materials (range 3) 2681 | -9/Materials | Entered another Materials area 2681 | -8/Materials | Evolved 2 slots: Propulsion x2 2943 | -8/Materials | Lost 4 parts (1p1u2w) 2969 | -8/Materials | Core integrity fell below 50% 3011 | -8/Materials | Lost 3 parts (3n) 3154 | -8/Materials | Core integrity fell below 20% 3335 | -8/Materials | Destroyed 9 combat bots 3374 | -8/Materials | Destroyed by H-61 Shepherd with Heavy Assault Cannon Last Messages --------------- 03326_ K-01 Serf collects debris. 03328_ Dropped Sml. Laser. 03328_ Acquired Ion Cannon. 03329_ Acquired 18 matter. 03330_ K-01 Serf collects debris. 03332_ Acquired 5 matter. 03333_ K-01 Serf collects debris. 03340_ Dropped Lgt. Ion Engine. 03351_ Aluminum Leg blasted off. 03351_ Knocked back. 03354_ W-25 Informer sends out distress signal. 03361_ K-01 Serf destroyed. 03363_ K-01 Serf collects debris. 03364_ G-47 Trooper destroyed. 03366_ W-25 Informer knocked back. 03368_ Slug penetrates Wall. 03368_ Knocked back. 03368_ K-01 Serf collects debris. 03369_ J&YN OP6NBFGPP8%JC|UGMOZWUC|BGAYOLDO 3J 03369_ K-01 Serf collects debris. Map ----- +----------------------------------------------------+ | ?????????????????????????????????????????????????? | | ?????????????????????????????????????????????????? | | ?????????????????????????????????????????????????? | | ?????????????????????????????????????????????????? | | ?????????????????????????????????????????????????? | | ?????????????????????????????????????????????????? | | ?????????????????????????????????????????????????? | | ?????????????????????????????????????????????????? | | ?????????????????????????????????????????????????? | | ??????????????????????????? ???????????????????? | | ?????????????????????????? ???????????????????? | | ??????????????????????????# ???????????????????? | | ??????????????????????????# ???????????????????? | | ??????????????????????????# ???????????????????? | | ??????????????????????????+ ???????????????????? | | ??????????????????????????# ???????????????? ? | | ??????????????????????????# #??????????????+ # | | ??????????????????????????# #??????????????# # | | ??????????????????????????# #??????????????# # | | ??????????????????????????# #?????????????## # | | ?????????????############## #######?????### ! | | ?????????????? ??????? | | ???????????????? ????????? | | ?????????????????? % ???? % ???????????? | | ?????????????????###+########+#########?????? | | ?????????????????# = ;@ g w%[ #??????# # | | ?????????????????#** H ;[ !k = #??????# # | | ?????????????????#** [==%* =[= #??????# # | | ?????????????????# !=+u%w=!!= #??????# # | | ?????????????????#! !*kk=* !!= !######## # | | ?????????????????# %#=u !! *[+%= / | | ?????????????????###################;######### # | | ?????????????????????????????????????????????##### | | ?????????????????????????????????????????????????# | | ?????????????????????????????????????????????????# | | ?????????????????????????????????????????????????# | | ?????????????????????????????????????????????????# | | ?????????????????????????????????????????????????# | | ??????????????????????????????#######+#######????# | | ??????????????????????????????? #????# | | ???????????????????????????????? #????? | | ????????????????????????????????? !! ###### | | ?????????????????????????????????# !! | | ?????????????????????????????????# ! | | ?????????????????????????????????# | | ?????????????????????????????????# | | ?????????????????????????????????# | | ?????????????????????????????????# | | ??????????????????????????######## | | ??????????????????????????# + ###+######### | +----------------------------------------------------+ Best States ------------- Heat Dissipation 45 Energy Generation 14 Energy Capacity 280 Matter Stores 300 Matter Capacity 300 Sight Range 16 Terrain Scan Range 16 Terrain Scan Density 10 Evasion (%) 55 Targeting Accuracy 11 Recoil Reduction 2 Item Schematics ----------------- None Robot Schematics ------------------ None Fabricated ------------ Nothing Alien Tech Used ----------------- None Achievements -------------- None Challenges ------------ None Game ------ Seed SpliceHardcellTorch Manual? 0 Play Time 00:39:11 Cumulative 13.9 hours Start 2024.07.14 @ 10:05:16 End 2024.07.14 @ 22:01:44 Sessions 3 Manual Loads 0 Difficulty Rogue Special Mode None Game No. 29 Rogue 29 Adventurer 0 Explorer 0 Win Type - Total 0 Types 0/0/0/0/0/0/0/0/0 Lore% 11 Gallery% 16 Achievement% 16 Wizard Run 0 Options --------- Layout 1 ASCII 1 Keyboard 0 Movement Numpad Keybinds 0 Fullscreen 1 Font 24/Proggy Map View 50x35 Zoom Use 0% Tactical HUD 1 Map Filters NONE Filters NONE Steam 0 RUN: 17d66b87-dc88-43b7-aa32-dd382ccd6677